Cogmind - Beta 13 @@@ ROGUE MODE // 2024.05.29 @ 17:08:01 Player: Waste Result: Self-destructed Performance ------------- Evolutions (3) 1500 Regions Visited (9) 1800 Robots Destroyed (124) 620 Value Destroyed (3415) 3415 Prototype IDs (8) 160 Alien Tech Used (0) 0 Bonus (1148) 1148 TOTAL SCORE: 8643 Bonus ------- High Alert Combat Kills 461 Follower Combat Kills 705 Friendly Fire -18 Cogmind --------- Core Integrity 458/700 Matter 300/300 Energy 150/150 System Corruption 1% Temperature Cool (0) Movement Core (550) Ox10 Location -7/Lower Caves Parts ------- > --- POWER (1) -------- Micro Nuclear Core > --- PROPULSION (5) --- (None) > --- UTILITY (5) ------ Large Storage Unit Advanced Weight Redist. System Improved Signal Interpreter > --- WEAPON (2) ------- Chainsword Chainsword > --- INVENTORY (15) --- Improved Cooling System High-capacity Matter Pod (200) Structural Scanner Seismic Detector Microactuators Hardened Light Armor Plating Hardened Light Armor Plating System Shield Heavy Gauss Cannon Rocket Launcher Heavy Rocket Launcher Chainsword Great Axe Peak State ------------ > --- POWER ------------ Micro Nuclear Core > --- PROPULSION ------- Aerolev Unit Aerolev Unit Aerolev Unit Aerolev Unit Gravmag System > --- UTILITY ---------- Large Storage Unit Advanced Gravity Neutralizer Improved Targeting Computer Reaction Control System Hacking Suite > --- WEAPON ----------- Chainsword Chainsword > --- INVENTORY -------- Micro Nuclear Core Micro Nuclear Core High-capacity Matter Pod Advanced Weight Redist. System Seismic Detector Microactuators Hardened Light Armor Plating Hardened Light Armor Plating System Shield Heavy Ion Cannon Enhanced Autogun Grenade Launcher Rocket Launcher Chainsword Great Axe [Rating: 53] Favorites ----------- Power Ion Engine Engine Ion Engine Power Core Nuclear Core Propulsion Light Treads Treads Light Treads Leg Aluminum Leg Hover Unit Aerolev Unit Flight Unit Improved Flight Unit Utility High-capacity Storage Unit Device Heat Sink Storage High-capacity Storage Unit Processor Improved Targeting Computer Hackware Hacking Suite Protection Light Armor Plating Weapon Light Assault Rifle Energy Gun Beamcaster Ballistic Gun Light Assault Rifle Launcher Rocket Launcher Slashing Weapon Scythe Build | -11 -10 -10 -9 -8 -8 -7 -7 -7 -7 ------- Run | Yrd Mat Min Mat Mat Sto Fac Was Fac Low Slots Evolved 6 | . . . 2 2 . 2 . . . Power . | . . . . . . . . . . Propulsion 3 | . . . 1 2 . . . . . Utility 3 | . . . 1 . . 2 . . . Weapon . | . . . . . . . . . . Parts Attached 96 | . 12 1 24 . 24 22 3 4 6 Power 10 | . 3 . 2 . 2 1 1 . 1 Engine 5 | . 3 . 1 . 1 . . . . Core 5 | . . . 1 . 1 1 1 . 1 Reactor . | . . . . . . . . . . Propulsion 34 | . 2 . 12 . 11 7 . 1 1 Treads 22 | . 2 . 10 . 10 . . . . Leg . | . . . . . . . . . . Wheel . | . . . . . . . . . . Hover 10 | . . . . . 1 7 . 1 1 Flight 2 | . . . 2 . . . . . . Utility 26 | . 3 1 4 . 3 6 2 3 4 Device 16 | . 2 1 2 . . 4 2 1 4 Storage 2 | . 1 . . . . 1 . . . Processor 2 | . . . 1 . . . . 1 . Hackware 2 | . . . . . . 1 . 1 . Protection 4 | . . . 1 . 3 . . . . Artifact . | . . . . . . . . . . Weapon 26 | . 4 . 6 . 8 8 . . . Energy Gun 4 | . . . 4 . . . . . . Energy Cannon . | . . . . . . . . . . Ballistic Gun 9 | . 4 . . . 5 . . . . Ballistic Cannon . | . . . . . . . . . . Launcher 2 | . . . 1 . . 1 . . . Special Weapon . | . . . . . . . . . . Impact Weapon . | . . . . . . . . . . Slashing Weapon 11 | . . . 1 . 3 7 . . . Piercing Weapon . | . . . . . . . . . . Special Melee Weapon . | . . . . . . . . . . Unidentified Prototypes 4 | . . . 1 . 2 . 1 . . Parts Lost 22 | . 3 . 3 . 5 2 . 1 8 Power 3 | . . . . . 2 . . . 1 Propulsion 11 | . 2 . 1 . 1 1 . 1 5 Utility 6 | . . . 1 . 2 1 . . 2 Weapon 2 | . 1 . 1 . . . . . . Highest Loss Streak 7 | . 3 . 3 . 1 2 . 1 7 To Critical Strikes . | . . . . . . . . . . Average Slot Usage (%) 96 | . 96 100 97 81 94 90 100 99 88 Engine 6 | . 13 14 4 . 2 . . . . Core 3 | . . . 6 9 4 7 7 7 6 Treads 21 | . 11 28 31 27 41 . . . . Leg 3 | . 16 . . . . . . . . Hover 7 | . . . . . . 33 38 37 27 Device 10 | . 11 14 9 . . 12 15 15 15 Storage 10 | . 14 14 11 9 9 7 7 7 7 Processor 5 | . . . 10 9 9 7 7 4 7 Hackware 1 | . . . . . . 6 7 10 5 Protection 1 | . . . 1 9 8 1 . . . Energy Gun 4 | . . . 17 9 . . . . . Ballistic Gun 11 | . 27 28 2 . 6 . . . . Slashing Weapon 5 | . . . 1 9 11 10 15 15 15 Naked Turns . | . . . . . . . . . . Heaviest Build 58 | 13 48 48 58 57 56 34 34 34 35 Greatest Support 100 | 20 40 40 60 60 100 41 41 41 41 Greatest Overweight (x) 10 | . 4 1 2 . . . . 1 10 Average Overweight (x) . | . . 1 . . . . . . . Largest Inventory Capacity 20 | . 20 20 20 20 20 20 15 15 15 Average Capacity 18 | . 17 20 20 20 20 15 15 15 15 Most Carried 20 | . 19 20 20 20 20 18 15 15 15 Average Carried 17 | . 13 19 19 20 19 13 14 14 14 Final Capacity 20 | 8 20 20 20 20 20 15 15 15 15 Final Carried 20 | 6 19 20 20 20 18 15 15 15 13 Class Distribution -------------------- 57% | Mutant 38% | Scavenger-Mutant Dominant Class ---------------- Mutant | -10/Materials Mutant | -10/Mines Scavenger-Mutant | -9/Materials Scavenger-Mutant | -8/Materials Scavenger-Mutant | -8/Storage Mutant | -7/Factory Mutant | -7/Waste Hacker-Mutant | -7/Factory Mutant | -7/Lower Caves Resources | -11 -10 -10 -9 -8 -8 -7 -7 -7 -7 ----------- Run | Yrd Mat Min Mat Mat Sto Fac Was Fac Low Matter Collected 1819 | 169 278 36 282 . 700 178 95 56 25 Remotely . | . . . . . . . . . . Salvage Created 4451 | . 502 146 1458 . 1873 230 . 103 139 Parts 268 | . 23 8 79 . 113 31 . 10 4 Haulers Intercepted 12 | . 2 . 6 . 3 1 . . . Recyclers Shooed . | . . . . . . . . . . Parts Field Recycled . | . . . . . . . . . . Retrieved Matter . | . . . . . . . . . . Parts Self-Destructed 26 | . . . . . . . . . 26 Prevented . | . . . . . . . . . . Kills | -11 -10 -10 -9 -8 -8 -7 -7 -7 -7 ------- Run | Yrd Mat Min Mat Mat Sto Fac Was Fac Low Combat Hostiles Destroyed 86 | . 13 3 26 . 36 5 . . 3 Melee 26 | . . . 3 . 19 1 . . 3 Guns 52 | . 13 3 19 . 17 . . . . AOE 7 | . . . 3 . . 4 . . . Classes Destroyed 14 | . 4 . 6 . . 2 . 1 1 Worker 7 | . . . 3 . 4 . . . . Builder 7 | . 1 . 2 . 2 2 . . . Tunneler 4 | . . . . . . 3 . 1 . Hauler 12 | . 2 . 6 . 3 1 . . . Mechanic 1 | . . . . . . . . 1 . Operator 4 | . . . 1 . . 1 . 2 . Watcher 3 | . . . 3 . . . . . . Swarmer 21 | . 6 . 3 . 7 4 . . 1 Grunt 41 | . 7 3 15 . 16 . . . . Brawler 2 | . . . 1 . 1 . . . . Duelist 3 | . . . 1 . 1 . . . 1 Sentry 17 | . . . 6 . 11 . . . . Specialist 1 | . . . . . . . . . 1 Programmer 1 | . . . . . . 1 . . . Best Kill Streak 8 | . 3 2 6 . 8 4 . 2 2 Combat Bots Only 6 | . 3 2 4 . 6 4 . . 2 Max Kills in Single Turn 3 | . 2 1 3 . 1 2 . 1 1 Gunslinging 1 | . 1 . . . . . . . . Exploded 2 | . . . 2 . . 2 . . . Melee 1 | . . . 1 . 1 1 . . 1 Uniques/NPCs Destroyed . | . . . . . . . . . . Combat | -11 -10 -10 -9 -8 -8 -7 -7 -7 -7 -------- Run | Yrd Mat Min Mat Mat Sto Fac Was Fac Low Hostile Shots Fired 472 | . 95 16 97 . 157 34 . 19 54 Missed 128 | . 18 6 26 . 38 12 . 10 18 Damage Taken 4646 | . 771 178 850 . 1728 316 . 215 588 Core 714 | . 148 30 103 . 191 77 . 18 147 Absorbed by Shields . | . . . . . . . . . . Regen/Repaired (Parts) 135 | . . . . . . . 21 114 . Core Remaining (%) 66 | 100 . 28 74 . 65 . . . . Volleys Fired 230 | . 76 12 73 . 66 3 . . . Largest 2 | . 2 2 2 . 2 1 . . . Hottest 150 | . 40 40 150 . 50 33 . . . Shots Fired 439 | . 151 24 138 . 123 3 . . . Gun 433 | . 151 24 135 . 123 . . . . Cannon . | . . . . . . . . . . Launcher 6 | . . . 3 . . 3 . . . Special . | . . . . . . . . . . Kinetic 302 | . 151 24 4 . 123 . . . . Thermal 131 | . . . 131 . . . . . . Explosive 6 | . . . 3 . . 3 . . . Electromagnetic . | . . . . . . . . . . Robot Hit Streak 20 | . 10 10 20 . 19 . . . . Robot Miss Streak 5 | . 5 4 3 . 2 3 . . . Penetration Max . | . . . . . . . . . . Secondary Targets 8 | . 1 1 1 . 5 . . . . Max Gunslinging Chain 1 | . 1 1 1 . 1 . . . . Shots Hit Robots 389 | . 96 15 95 . 145 21 . 9 8 Core Hits 166 | . 35 12 44 . 58 12 . 1 4 Critical Kills 3 | . 1 . . . 2 . . . . Critical Parts Destroyed 2 | . . . . . 2 . . . . Critical Strikes 22 | . 1 . 7 . 10 2 . . 2 Burn 7 | . . . 7 . . . . . . Destroy 5 | . 1 . . . 4 . . . . Sever 10 | . . . . . 6 2 . . 2 Melee Attacks 138 | . . . 5 . 67 37 . 15 14 Impact . | . . . . . . . . . . Slashing 138 | . . . 5 . 67 37 . 15 14 Piercing . | . . . . . . . . . . Sneak Attacks 13 | . . . . . 4 6 . 3 . Combat Hostiles . | . . . . . . . . . . Follow-up Attacks 11 | . . . . . 4 4 . . 3 Damage Inflicted 9064 | . 808 189 2541 . 3352 1426 . 485 263 Guns 4610 | . 799 154 1982 . 1675 . . . . Cannons . | . . . . . . . . . . Explosions 796 | . . . 305 . . 491 . . . Melee 3451 | . . . 130 . 1638 935 . 485 263 Ramming 207 | . 9 35 124 . 39 . . . . Kinetic 2644 | . 799 154 16 . 1675 . . . . Thermal 1966 | . . . 1966 . . . . . . Explosive 796 | . . . 305 . . 491 . . . Electromagnetic . | . . . . . . . . . . Impact . | . . . . . . . . . . Slashing 3451 | . . . 130 . 1638 935 . 485 263 Piercing . | . . . . . . . . . . Highest Corruption 1 | . . . 1 . . . . 1 1 Average Corruption 1 | . . . 1 . . . . 1 1 Corruption Purged . | . . . . . . . . . . Corruption Blocked . | . . . . . . . . . . Effects 10 | . . . 8 . . . . 1 1 Message Errors 3 | . . . 1 . . . . 1 1 Matter Fused 4 | . . . 4 . . . . . . Heat Flow Errors 2 | . . . 2 . . . . . . Energy Discharges 1 | . . . 1 . . . . . . Overload Shots . | . . . . . . . . . . Overflow Damage 467 | . . . 24 . 41 221 . 181 . Projectiles . | . . . . . . . . . . Explosions 92 | . . . 20 . . 72 . . . Melee 375 | . . . 4 . 41 149 . 181 . Knockbacks 3 | . . 1 2 . . . . . . Impact 3 | . . 1 2 . . . . . . Kinetic . | . . . . . . . . . . Secondary . | . . . . . . . . . . Self-Inflicted Damage 15 | . . . . . . 15 . . . Shots 1 | . . . . . . 1 . . . Rammed 14 | . . 4 7 . 3 . . . . Targets Rammed 21 | . 3 4 8 . 6 . . . . Kicked 3 | . 3 . . . . . . . . Crushed 4 | . . . 1 . 3 . . . . Highest Temperature 354 | . 15 5 354 . 210 5 . . . Average Temperature 63 | . 7 5 65 . 63 5 . . . Received Heat Transfer 1530 | . 219 63 333 . 720 21 . 21 153 Effects 1 | . . . 1 . . . . . . Short Circuit 1 | . . . 1 . . . . . . Siege Activations . | . . . . . . . . . . Robots Corrupted . | . . . . . . . . . . Combat Hostiles . | . . . . . . . . . . Parts Fried . | . . . . . . . . . . Impact Corruptions 2 | . . . 1 . 1 . . . . Robots Melted 1 | . . . 1 . . . . . . Combat Hostiles 1 | . . . 1 . . . . . . Parts Melted 13 | . . . 12 . . 1 . . . Heat Transferred 3848 | . . . 3848 . . . . . . Parts Sabotaged . | . . . . . . . . . . Parts Stolen . | . . . . . . . . . . Parts Stripped . | . . . . . . . . . . Power Chain Reactions . | . . . . . . . . . . Alert | -11 -10 -10 -9 -8 -8 -7 -7 -7 -7 ------- Run | Yrd Mat Min Mat Mat Sto Fac Was Fac Low Peak Influence 889 | . 185 155 611 235 889 834 201 860 . Initial 392 | . . 27 32 235 98 392 201 140 . Average 262 | . 58 31 301 235 516 543 201 498 . Maximum Alert Level 3 | . . . 2 1 3 3 1 3 . Low Security (%) 51 | . 100 100 33 . 7 . . 24 . Level 1 17 | . . . 37 100 15 10 100 14 . Level 2 25 | . . . 29 . 61 70 . 36 . Level 3 5 | . . . . . 15 19 . 24 . Level 4 . | . . . . . . . . . . Level 5 . | . . . . . . . . . . High Security . | . . . . . . . . . . Max Security . | . . . . . . . . . . Squads Dispatched 28 | . 2 . 6 . 9 4 . 7 . Investigation 5 | . . . 3 . 1 . . 1 . Extermination 1 | . . . . . . 1 . . . Reinforcement 10 | . 2 . 3 . 1 1 . 3 . Assault 5 | . . . . . 4 1 . . . Garrison 7 | . . . . . 3 1 . 3 . Intercept . | . . . . . . . . . . Searches Triggered . | . . . . . . . . . . Construction Impeded 3 | . . . 1 . . . . 2 . Haulers Reinforced . | . . . . . . . . . . Active Scanning Responses . | . . . . . . . . . . Cargo Convoy Interrupts . | . . . . . . . . . . Stealth | -11 -10 -10 -9 -8 -8 -7 -7 -7 -7 --------- Run | Yrd Mat Min Mat Mat Sto Fac Was Fac Low Distress Signals 8 | . 1 . 3 . 3 1 . . . Communications Jammed . | . . . . . . . . . . Distress Signals . | . . . . . . . . . . Times Spotted 181 | . 21 8 48 . 59 13 . 10 22 Peak Tracking Total 12 | . 4 3 5 . 11 4 . 3 12 Tactical Retreats 14 | . 1 . 2 . 3 4 . . 4 Traps | -11 -10 -10 -9 -8 -8 -7 -7 -7 -7 ------- Run | Yrd Mat Min Mat Mat Sto Fac Was Fac Low Traps Triggered 13 | . 2 1 4 . 2 3 . 1 . Indirectly . | . . . . . . . . . . Trap Hack Attempts . | . . . . . . . . . . Triggered . | . . . . . . . . . . Disarmed . | . . . . . . . . . . Reprogrammed . | . . . . . . . . . . Reused . | . . . . . . . . . . Traps Extracted . | . . . . . . . . . . Installed . | . . . . . . . . . . Triggered 1 | . . . . . . . . . 1 Machines | -11 -10 -10 -9 -8 -8 -7 -7 -7 -7 ---------- Run | Yrd Mat Min Mat Mat Sto Fac Was Fac Low Machines Disabled 12 | . . . 2 . 2 3 . 4 1 Max in Single Turn 2 | . . . 1 . 1 2 . . 1 Garrison Access 2 | . . . . . . 1 . 1 . Machines Repaired . | . . . . . . . . . . Machines Dismantled . | . . . . . . . . . . Machines Sabotaged . | . . . . . . . . . . Overloaded Fab Kills . | . . . . . . . . . . Hacking | -11 -10 -10 -9 -8 -8 -7 -7 -7 -7 --------- Run | Yrd Mat Min Mat Mat Sto Fac Was Fac Low Machines Accessed 42 | . 4 1 8 . 6 10 . 13 . Terminals 31 | . 4 . 7 . 5 6 . 9 . Fabricators 4 | . . . . . . 2 . 2 . Repair Stations 2 | . . . . . . 1 . 1 . Recycling Units . | . . . . . . . . . . Scanalyzers 1 | . . . 1 . . . . . . Garrison Access 3 | . . . . . 1 1 . 1 . Total Hacks 87 | . 7 1 20 . 12 18 . 29 . Successful 46 | . 3 1 11 . 4 11 . 16 . Failed 41 | . 4 . 9 . 8 7 . 13 . Catastrophic 11 | . 1 . 3 . 2 3 . 2 . Database Lockouts . | . . . . . . . . . . Manual 47 | . 6 . 9 . 8 11 . 12 1 Terminals 67 | . 7 . 14 . 10 13 . 23 . Fabricators 6 | . . . . . . 3 . 3 . Repair Stations 3 | . . . . . . 1 . 2 . Recycling Units . | . . . . . . . . . . Scanalyzers 6 | . . . 6 . . . . . . Garrison Access 4 | . . . . . 2 1 . 1 . Terminal Hacks 18 | . 3 1 2 . 2 4 . 6 . Part Schematic 1 | . . . . . . 1 . . . Robot Analysis 2 | . 2 . . . . . . . . Prototype ID Bank 2 | . . . 1 . . . . 1 . Open Door 3 | . . 1 . . 2 . . . . Branch Access Points 2 | . . . . . . 1 . 1 . Alert Level 3 | . . . . . . 1 . 2 . Unreport Threat 3 | . . . . . . 1 . 2 . Locate Traps 1 | . 1 . . . . . . . . Hauler Manifests 1 | . . . 1 . . . . . . Fabricator Hacks 4 | . . . . . . 2 . 2 . Network Status 3 | . . . . . . 2 . 1 . Build 1 | . . . . . . . . 1 . Repair Station Hacks 2 | . . . . . . . . 2 . Scan Component 1 | . . . . . . . . 1 . Repair 1 | . . . . . . . . 1 . Recycling Unit Hacks . | . . . . . . . . . . Scanalyzer 6 | . . . 6 . . . . . . Insert Component 3 | . . . 3 . . . . . . Analyze 3 | . . . 3 . . . . . . Garrison Access Hacks 2 | . . . . . . 1 . 1 . Seal Access 2 | . . . . . . 1 . 1 . Unauthorized Hacks 14 | . . . 3 . 2 4 . 5 . Terminals 13 | . . . 3 . 2 3 . 5 . Assimilate 1 | . . . . . . . . 1 . Botnet 12 | . . . 3 . 2 3 . 4 . Fabricators 1 | . . . . . . 1 . . . Liberate 1 | . . . . . . 1 . . . Repair Stations . | . . . . . . . . . . Recycling Units . | . . . . . . . . . . Scanalyzers . | . . . . . . . . . . Garrison Access . | . . . . . . . . . . Data Cores Recovered 2 | . . . 1 . . 1 . . . Used . | . . . . . . . . . . Hacking Detections 32 | . 3 . 8 . 5 7 . 9 . Full Trace Events 2 | . . . 1 . . . . 1 . Feedback Events 1 | . . . . . . . . 1 . Corruption 1 | . . . . . . . . 1 . Feedback Blocked . | . . . . . . . . . . Robot Schematics Acquired . | . . . . . . . . . . Robots Built . | . . . . . . . . . . Authchips . | . . . . . . . . . . Time . | . . . . . . . . . . Total Robot Build Rating . | . . . . . . . . . . Part Schematics Acquired 4 | . . . 3 . . 1 . . . Parts Built 2 | . . . . . . . . 2 . Authchips . | . . . . . . . . . . Time 58 | . . . . . . . . 58 . Total Part Build Rating 14 | . . . . . . . . 14 . Parts Repaired 1 | . . . . . . . . 1 . Time 20 | . . . . . . . . 20 . Parts Recycled . | . . . . . . . . . . Recycled Matter . | . . . . . . . . . . Retrieved Matter . | . . . . . . . . . . Retrieved Components . | . . . . . . . . . . Parts Scanalyzed 3 | . . . 3 . . . . . . Part Schematics Acquired 3 | . . . 3 . . . . . . Parts Damaged 1 | . . . 1 . . . . . . Bothacking | -11 -10 -10 -9 -8 -8 -7 -7 -7 -7 ------------ Run | Yrd Mat Min Mat Mat Sto Fac Was Fac Low Used RIF Installer . | . . . . . . . . . . Robots Hacked . | . . . . . . . . . . Non-combat . | . . . . . . . . . . Combat . | . . . . . . . . . . Robot Hacks Applied . | . . . . . . . . . . Relay Couplers Released . | . . . . . . . . . . Fabnet Peak Effective % . | . . . . . . . . . . Robots Rewired 2 | . . . . . . . . . 2 Allies Hacked . | . . . . . . . . . . Hacks Repelled . | . . . . . . . . . . Allies | -11 -10 -10 -9 -8 -8 -7 -7 -7 -7 -------- Run | Yrd Mat Min Mat Mat Sto Fac Was Fac Low Total Allies 29 | . . 3 . . 2 2 20 . 2 Largest Group 20 | . . 3 3 . 2 2 20 20 11 Highest-Rated Group 567 | . . 77 77 . 62 64 567 567 333 Highest-Rated Ally 35 | . . 31 31 . 31 32 35 35 35 Total Orders . | . . . . . . . . . . Ally Attacks 173 | . . 15 21 . 16 4 . 89 28 Total Damage 6062 | . . 232 315 . 186 247 . 4455 627 Kills 42 | . . 5 4 . . 1 . 29 3 Allies Corrupted 1 | . . . . . . . . . 1 Allies Melted . | . . . . . . . . . . Intel | -11 -10 -10 -9 -8 -8 -7 -7 -7 -7 ------- Run | Yrd Mat Min Mat Mat Sto Fac Was Fac Low Robot Analysis Total 2 | . 2 . . . . . . . . Derelict Logs Recovered 2 | . . 2 . . . . . . . Drone Launches . | . . . . . . . . . . Drone Recoveries . | . . . . . . . . . . Exploration | -11 -10 -10 -9 -8 -8 -7 -7 -7 -7 ------------- Run | Yrd Mat Min Mat Mat Sto Fac Was Fac Low Turns Passed 7231 | . 1445 1250 1813 13 1062 511 182 484 471 Spaces Moved 4873 | 1 579 499 835 9 400 988 332 795 435 Core 2 | . . . . . . . . . 2 Treads 1951 | . 208 499 835 9 400 . . . . Legs 372 | 1 371 . . . . . . . . Wheels . | . . . . . . . . . . Hover 2548 | . . . . . . 988 332 795 433 Flight . | . . . . . . . . . . Fastest Speed 36 | 120 120 240 160 160 160 36 36 36 40 Average Speed 115 | 120 204 240 167 160 160 37 36 36 96 Slowest Speed 550 | 120 400 240 320 160 160 38 36 98 550 Overloaded Moves . | . . . . . . . . . . Propulsion Burnouts . | . . . . . . . . . . Robots Hopped . | . . . . . . . . . . Cave-ins Triggered . | . . . . . . . . . . Exploration Rate (%) 54 | 2 81 97 92 3 66 29 94 26 59 Regions Visited 9 Branch Regions 3 Pre-discovered Areas 2 | . . 2 . . . . . . . Known Exits Taken 1 | . . . . . . . . 1 . Unknown Exits Taken 6 | 1 1 1 1 1 1 . . . . Scrap Searched 2 | . . 1 . . . . . . 1 Spaces Dug 15 | . . . . . . 12 . 3 . Terrain Destroyed 99 | . . . 17 . . 79 . 3 . Melee 15 | . . . . . . 12 . 3 . Projectile . | . . . . . . . . . . AOE 84 | . . . 17 . . 67 . . . Terrain Rammed . | . . . . . . . . . . Walls Destroyed . | . . . . . . . . . . Machines Disabled . | . . . . . . . . . . Actions | -11 -10 -10 -9 -8 -8 -7 -7 -7 -7 --------- Run | Yrd Mat Min Mat Mat Sto Fac Was Fac Low Total 5950 | . 716 529 1112 8 662 1087 394 971 471 Wait 439 | . 28 10 114 . 80 1 56 138 12 Move 4865 | . 578 498 834 8 399 988 331 794 435 Hop . | . . . . . . . . . . Pick Up 66 | . 15 2 21 . 11 12 1 4 . Fast Attach 32 | . 5 . 11 . 6 4 2 3 1 Attach 23 | . 3 . 3 . 3 12 1 . 1 Detach 3 | . . . . . . 3 . . . Swap 41 | . 4 1 10 . 15 6 . 1 4 Drop 85 | . 4 2 33 . 21 16 3 6 . Fire 230 | . 76 12 73 . 66 3 . . . Melee 114 | . . . 5 . 55 32 . 12 10 Ram . | . . . . . . . . . . Kick 3 | . 3 . . . . . . . . Crush 18 | . . 4 8 . 6 . . . . Escape Stasis 23 | . . . . . . 10 . 13 . Rewire 8 | . . . . . . . . . 8 Trap . | . . . . . . . . . . Miscellaneous . | . . . . . . . . . . Route ------- -11/Scrapyard -10/Materials (discovered 3 exits: *Mat x2 / *Min) -10/Mines (discovered 2 exits: *Mat x2) -9/Materials (discovered 5 exits: [*Mat x3] / [*Min x2]) -8/Materials -8/Storage -7/Factory (discovered 3 exits: *Fac / Low x2) -7/Waste -7/Factory (discovered 4 exits: *Fac x2 / *Low x2) -7/Lower Caves (discovered 1 exit: [*Zio]) History --------- Turn | Location | Event 1 | -11/Scrapyard | Discovered new exit (range 0) 1 | -11/Scrapyard | Entered Materials 234 | -10/Materials | Discovered new exit (range 16) 309 | -10/Materials | Build established: Mutant 869 | -10/Materials | Core integrity fell below 50% 897 | -10/Materials | Lost 3 parts (2n1w) 1137 | -10/Materials | Discovered new exit (range 8) 1400 | -10/Materials | Discovered new exit (range 8) 1446 | -10/Materials | Entered Mines 1447 | -10/Mines | Met a Derelict bent on vengeance 1596 | -10/Mines | Learned Materials terminal intel 1641 | -10/Mines | Met a Derelict who couldn't figure out how to use a Trap Extractor 1779 | -10/Mines | Escorted by a lone wolf Derelict 2049 | -10/Mines | Deemed a non-threat by the Exiles lab entrance 2289 | -10/Mines | Discovered new exit (range 9) 2292 | -10/Mines | Learned location of Zion (-7) 2293 | -10/Mines | Learned location of Storage (-8) 2648 | -10/Mines | Discovered new exit (range 13) 2696 | -10/Mines | Entered Materials 2696 | -9/Materials | Accompanied by 3 allies 2696 | -9/Materials | Evolved 2 slots: Propulsion x1, Utility x1 2697 | -9/Materials | Loaded intel: 12 terminal locations 2701 | -9/Materials | Led the pair of lost Derelicts to an unsafe place 2887 | -9/Materials | Lost 3 allies 3046 | -9/Materials | Discovered new exit (range 8) 3193 | -9/Materials | Build established: Scavenger-Mutant 3264 | -9/Materials | Discovered new exit (range 5) 3506 | -9/Materials | Discovered new exit (range 10) 3715 | -9/Materials | Discovered new exit (range 7) 4284 | -9/Materials | Lost 3 parts (1n1u1w) 4485 | -9/Materials | Discovered new exit (range 15) 4509 | -9/Materials | Entered another Materials area 4509 | -8/Materials | Evolved 2 slots: Propulsion x2 4509 | -8/Materials | Discovered new exit (range 7) 4522 | -8/Materials | Entered Storage 5322 | -8/Storage | First assault squad dispatched 5330 | -8/Storage | Garrison activated, responded to threat 5520 | -8/Storage | Met a pair of Derelict thieves 5570 | -8/Storage | Discovered new exit (range 9) 5584 | -8/Storage | Entered Factory 5584 | -7/Factory | Evolved 2 slots: Utility x2 5855 | -7/Factory | Discovered new exit (range 11) 5895 | -7/Factory | Build established: Mutant 5911 | -7/Factory | Garrison activated, responded to threat 5962 | -7/Factory | Identified exit to Lower Caves 5984 | -7/Factory | First assault squad dispatched 6095 | -7/Factory | Sucked down chute 6095 | -7/Factory | Entered Waste 6096 | -7/Waste | Joined by Warlord forces that had cleared the area 6171 | -7/Waste | Discovered new exit (range 12) 6277 | -7/Waste | Entered Factory 6277 | -7/Factory | Accompanied by 20 allies 6353 | -7/Factory | Lost 5 allies 6436 | -7/Factory | Repaired Aerolev Unit 6534 | -7/Factory | Fabricated Hvy. Gauss Cannon (x2) 6547 | -7/Factory | Discovered new exit (range 13) 6617 | -7/Factory | Discovered new exit (range 6) 6619 | -7/Factory | Identified exit to Factory 6761 | -7/Factory | Entered Lower Caves 6761 | -7/Lower Caves | Accompanied by 11 allies 6808 | -7/Lower Caves | Acquired the password to a Derelict Tinkerer's latest research 6853 | -7/Lower Caves | A Derelict revealed a hidden shortcut to a safe place 6867 | -7/Lower Caves | Attracted the attention of an 0b10 outpost 6938 | -7/Lower Caves | Lost 11 allies 7149 | -7/Lower Caves | Caught by Unaware searching for contraband prototypes 7232 | -7/Lower Caves | Self-destructed Last Messages --------------- 06972_ L-41 Fighter system corrupted by crushing effect. 06972_ L-41 Fighter knocked back. 06974_ Chainsword follow-up attack on S-27 Virus. 06976_ S-27 Virus destroyed. 06978_ L-41 Fighter destroyed. 06986_ Slug penetrates Wall. 07094_ ZP6D8WSRYC#&XJJSL7,T,BNB=PKST775KN 07148_ Penetrated by Slug. 07149_ X-62 Marksman: "CONFIRMED SUSPICIOUS DERELICT. COMMENCE PROTOTYPE CONTRABAND SEARCH." 07167_ Penetrated by Slug. 07169_ Discarded Hacking Suite. 07178_ Slug penetrates Wall. 07184_ Mic. Nuclear Core destroyed. 07186_ Aerolev Unit destroyed. 07188_ Imp. Sensor Array destroyed. 07202_ Aerolev Unit destroyed. 07213_ Reaction Control System destroyed. 07216_ Aerolev Unit destroyed. 07220_ Airjet destroyed. Map ----- +----------------------------------------------------+ | ?????????????????????????????????????????????????? | | ?????????????????????????????????????????????????? | | ?????????????????????????????????????????????????? | | ?????????????????????????????????????????????????? | | ?????????????????????????????????????????????????? | | ?????????????????????????????????????????????????? | | ?????????????????????????????????????????????????? | | ?????????????????????????????????????????????????? | | ?????????????????????????????????????????????????? | | ?????????????????????????????????????????????????? | | ?????????????????????????????????????????????????? | | ?????????????????????????????????????????????????? | | ?????????????????????????????????????????????????? | | ?????????????????????????????????????????????????? | | ?????????????????????????????????????????????????? | | ?????????????????????????????????????????????? # | | ???????????????????????????????????????????? | | ????????????????????????????????????????????? | | ????????????????????????????????????????????? | | ?????????????????????????????????????????????? | | ??????????????????????????????????????????????? | | ????????????## ###????????????????????## ?????? | | ????????????# ????####?????????? ??????? | | ????????????# !=% ### !##???????? ?????????# | | ????????????# %* % %!!#??????? ???????????# | | ????????????# % @bl#?????? ????????????? | | ????????????# % ##g#?????? ?????????##### | | ????????????# #### ##???? ??????????# | | ????????????# ??## ### #??????????# | | ??????????? ## ??## #??????????# ## | | ????????????##???##????# ### #??????????# #? | | ???????????????????????# ## #????????### #? | | ???????????????????????# #??????### #? | | ???????????????????????## ###?????## #? | | ????????????????????????## # ##?????### #####? | | ?????????????????????????# ####????### ##????? | | ?????????????????????????# #??????## ##?????? | | ?????????????? ####### #?????## ##?????? | | ????????????" ####### #?????? | | ???????????????????####### ###?????? | | ?????????????????????????######### #???????? | | ?????????????????????????????????# #??????? | | ?????????????????????????????????### #??????? | | ???????????????????????????????????########??????? | | ?????????????????????????????????????????????????? | | ?????????????????????????????????????????????????? | | ?????????????????????????????????????????????????? | | ?????????????????????????????????????????????????? | | ?????????????????????????????????????????????????? | | ?????????????????????????????????????????????????? | +----------------------------------------------------+ Best States ------------- Heat Dissipation 42 Energy Generation 15 Energy Capacity 250 Matter Stores 300 Matter Capacity 300 Sight Range 16 Robot Scan Range 15 Terrain Scan Density 10 Additional Mass Support 9 Armor Coverage 150 Melee Speed Boost 20 Evasion (%) 65 Targeting Accuracy 6 Recoil Reduction 5 Offensive Hacking 20 Item Schematics ----------------- Imp. Flight Unit | -9/Materials | Scanalyzed Adv. Weight Redist. System | -9/Materials | Scanalyzed Hrd. Light Armor Plating | -9/Materials | Scanalyzed Adv. ECM Suite | -7/Factory | Hacked Robot Schematics ------------------ None Fabricated ------------ Hvy. Gauss Cannon | x2 | -7/Factory | Preloaded Alien Tech Used ----------------- None Achievements -------------- None Challenges ------------ None Game ------ Seed PotentialCentriumRefractor Manual? 0 Play Time 00:54:28 Cumulative 245.9 hours Start 2024.05.29 @ 16:17:48 End 2024.05.29 @ 17:08:01 Sessions 1 Manual Loads 0 Difficulty Rogue Special Mode None Game No. 302 Rogue 302 Adventurer 0 Explorer 0 Win Type - Total 9 Types 5/1/0/1/1/0/0/1/0 Lore% 73 Gallery% 81 Achievement% 70 Wizard Run 0 Options --------- Layout 0 ASCII 0 Keyboard 0 Movement Numpad Keybinds 0 Fullscreen 1 Font 18/SmallcapsGlow Map View 76x50 Zoom Use 0% Tactical HUD 1 Map Filters NONE Filters NONE Steam 1 RUN: 08301747-8ef2-43b7-bd97-a2a7f4250c83